[Event "17th Spilimbergo Open 2019"]
[Site "Spilimbergo"]
[Date "2019.08.15"]
[Round "9.7"]
[White "Lodici, Lorenzo"]
[Black "Admiraal, Miguoel"]
[Result "1/2-1/2"]
[WhiteElo "2472"]
[BlackElo "2513"]
[PlyCount "57"]
[EventDate "2019.08.09"]
[EventType "swiss"]
[EventCountry "ITA"]
[TimeControl "5400+30"]
[WhiteClock "0:07:49"]
[BlackClock "0:25:00"]

1. d4 {[%emt 0:00:30]} d5 {[%emt 0:24:30]} 2. c4 {[%emt 0:00:00]} c6 {[%emt 0:00:00]} 3. Nc3 {[%emt 0:03:00]} Nf6 {[%emt 0:00:00]} 4. Nf3 {[%emt 0:00:00]} dxc4 {[%emt 0:00:30]} 5. e4 {[%emt 0:01:00]} b5 {[%emt 0:00:30]} 6. Be2 {[%emt 0:00:00]} Bg4 {[%emt 0:03:30]} 7. e5 {[%emt 0:03:00]} Nd5 {[%emt 0:00:30]} 8. h3 {[%emt 0:00:00]} Bxf3 {[%emt 0:03:30]} 9. Bxf3 {[%emt 0:00:00]} e6 {[%emt 0:00:30]} 10. a4 {[%emt 0:00:30]} Bb4 {[%emt 0:00:30]} 11. Bd2 {[%emt 0:00:00]} a5 {[%emt 0:10:30]} 12. Bxd5 {[%emt 0:11:00]} Bxc3 {[%emt 0:09:30]} 13. bxc3 {[%emt 0:03:30]} Qxd5 {[%emt 0:00:30]} 14. Qg4 {[%emt 0:00:00]} Kf8 {[%emt 0:07:30]} 15. Qh4 {[%emt 0:19:00]} Nd7 {[%emt 0:05:30]} 16. axb5 {[%emt 0:00:30]} cxb5 {[%emt 0:05:30]} 17. Rxa5 {[%emt 0:02:30]} Qxg2 {[%emt 0:01:30]} 18. Rxa8+ {[%emt 0:02:30]} Qxa8 {[%emt 0:00:30]} 19. Ke2 {[%emt 0:02:30]} Kg8 {[%emt 0:10:58]} 20. Rg1 {[%emt 0:17:30]} Nf8 {[%emt 0:00:06]} 21. Rxg7+ {[%emt 0:00:30]} Kxg7 {[%emt 0:00:04]} 22. Bh6+ {[%emt 0:00:30]} Kg8 {[%emt 0:00:03]} 23. Qg5+ {[%emt 0:00:00]} Ng6 {[%emt 0:00:05]} 24. f3 {[%emt 0:01:00]} f5 {[%emt 0:05:42]} 25. Qf6 {[%emt 0:06:30]} Qa2+ {[%emt 0:00:13]} 26. Kf1 {[%emt 0:02:30]} Qb1+ {[%emt 0:02:18]} 27. Kf2 {[%emt 0:00:30]} Qc2+ {[%emt 0:00:24]} 28. Kf1 {[%emt 0:00:30]} Qd1+ {[%emt 0:01:18]} 29. Kf2 1/2-1/2

[Event "17th Spilimbergo Open 2019"]
[Site "Spilimbergo"]
[Date "2019.08.15"]
[Round "9.8"]
[White "Sonis, Francesco"]
[Black "Miron, Lucian-Costin"]
[Result "1-0"]
[WhiteElo "2459"]
[BlackElo "2494"]
[PlyCount "57"]
[EventDate "2019.08.09"]
[EventType "swiss"]
[EventCountry "ITA"]
[TimeControl "5400+30"]
[WhiteClock "0:06:46"]
[BlackClock "1:07:00"]

1. d4 {[%emt 0:00:30]} d5 {[%emt 0:05:30]} 2. c4 {[%emt 0:00:00]} c6 {[%emt 0:00:30]} 3. Nf3 {[%emt 0:00:00]} Nf6 {[%emt 0:00:00]} 4. e3 {[%emt 0:00:30]} Bf5 {[%emt 0:00:00]} 5. Nc3 {[%emt 0:00:00]} e6 {[%emt 0:00:30]} 6. Nh4 {[%emt 0:00:00]} Be4 {[%emt 0:00:00]} 7. f3 {[%emt 0:00:00]} Bg6 {[%emt 0:00:00]} 8. Qb3 {[%emt 0:00:00]} Qc7 {[%emt 0:00:30]} 9. Bd2 {[%emt 0:00:30]} Be7 {[%emt 0:02:30]} 10. O-O-O {[%emt 0:00:30]} a6 {[%emt 0:02:30]} 11. Nxg6 {[%emt 0:00:30]} hxg6 {[%emt 0:00:00]} 12. Kb1 {[%emt 0:00:30]} dxc4 {[%emt 0:06:00]} 13. Bxc4 {[%emt 0:00:00]} Nbd7 {[%emt 0:17:30]} 14. Ne4 {[%emt 0:01:00]} Nxe4 {[%emt 0:02:30]} 15. fxe4 {[%emt 0:00:00]} b5 {[%emt 0:00:30]} 16. Be2 {[%emt 0:00:00]} c5 {[%emt 0:01:30]} 17. e5 {[%emt 0:00:00]} Rc8 {[%emt 0:04:30]} 18. h4 {[%emt 0:00:00]} Qb7 {[%emt 0:09:30]} 19. Bf3 {[%emt 0:09:30]} Qb6 {[%emt 0:02:30]} 20. h5 {[%emt 0:01:30]} gxh5 {[%emt 0:19:30]} 21. Qc2 {[%emt 0:14:30]} g6 {[%emt 0:04:33]} 22. d5 {[%emt 0:00:30]} exd5 {[%emt 0:06:16]} 23. Bxd5 {[%emt 0:03:30]} Nf8 {[%emt 0:00:05]} 24. Qe4 {[%emt 0:00:30]} Ne6 {[%emt 0:00:33]} 25. Ba5 {[%emt 0:01:30]} Qxa5 {[%emt 0:06:18]} 26. Bxe6 {[%emt 0:00:30]} Rd8 {[%emt 0:00:43]} 27. Qc6+ {[%emt 0:00:30]} Kf8 {[%emt 0:00:07]} 28. Rdf1 {[%emt 0:00:30]} f6 {[%emt 0:02:39]} 29. Bb3 1-0

[Event "17th Spilimbergo Open 2019"]
[Site "Spilimbergo"]
[Date "2019.08.15"]
[Round "9.9"]
[White "Petrov, Martin"]
[Black "Nikolovski, Nikola"]
[Result "1-0"]
[WhiteElo "2477"]
[BlackElo "2409"]
[PlyCount "63"]
[EventDate "2019.08.09"]
[EventType "swiss"]
[EventCountry "ITA"]
[TimeControl "5400+30"]
[WhiteClock "0:05:25"]
[BlackClock "0:55:00"]

1. e4 {[%emt 0:00:30]} c5 {[%emt 0:01:30]} 2. Nf3 {[%emt 0:00:00]} d6 {[%emt 0:00:30]} 3. d4 {[%emt 0:00:00]} cxd4 {[%emt 0:00:00]} 4. Nxd4 {[%emt 0:00:00]} Nf6 {[%emt 0:00:00]} 5. Nc3 {[%emt 0:00:00]} g6 {[%emt 0:00:30]} 6. Be3 {[%emt 0:00:30]} Bg7 {[%emt 0:00:00]} 7. f3 {[%emt 0:00:30]} a6 {[%emt 0:00:00]} 8. Qd2 {[%emt 0:00:30]} Nbd7 {[%emt 0:00:30]} 9. g4 {[%emt 0:00:30]} b5 {[%emt 0:05:30]} 10. h4 {[%emt 0:00:30]} h5 {[%emt 0:11:30]} 11. g5 {[%emt 0:00:30]} Nh7 {[%emt 0:00:00]} 12. f4 {[%emt 0:00:30]} Bb7 {[%emt 0:02:00]} 13. f5 {[%emt 0:00:00]} Nhf8 {[%emt 0:05:30]} 14. O-O-O {[%emt 0:05:00]} Nb6 {[%emt 0:21:30]} 15. f6 {[%emt 0:12:30]} exf6 {[%emt 0:02:30]} 16. Ndxb5 {[%emt 0:00:30]} axb5 {[%emt 0:00:30]} 17. Bxb5+ {[%emt 0:00:30]} Ke7 {[%emt 0:12:30]} 18. Bf4 {[%emt 0:01:30]} fxg5 {[%emt 0:04:30]} 19. Bxd6+ {[%emt 0:05:30]} Ke6 {[%emt 0:00:30]} 20. Qe3 {[%emt 0:02:30]} Nfd7 {[%emt 0:03:30]} 21. Bc5 {[%emt 0:01:30]} Be5 {[%emt 0:01:30]} 22. hxg5 {[%emt 0:06:30]} Qb8 {[%emt 0:16:43]} 23. Rxd7 {[%emt 0:01:30]} Re8 {[%emt 0:01:40]} 24. Qh3+ {[%emt 0:03:30]} f5 {[%emt 0:00:07]} 25. Bxb6 {[%emt 0:01:30]} Ba6 {[%emt 0:03:38]} 26. exf5+ {[%emt 0:00:30]} gxf5 {[%emt 0:00:09]} 27. Qxh5 {[%emt 0:01:30]} Bxc3 {[%emt 0:02:17]} 28. Qf7+ {[%emt 0:01:30]} Ke5 {[%emt 0:00:06]} 29. Rd5+ {[%emt 0:00:00]} Kf4 {[%emt 0:00:50]} 30. Qxf5+ {[%emt 0:00:00]} Kg3 {[%emt 0:00:00]} 31. Rh3+ {[%emt 0:00:30]} Kg2 {[%emt 0:00:05]} 32. Qf3# 1-0

[Event "17th Spilimbergo Open 2019"]
[Site "Spilimbergo"]
[Date "2019.08.15"]
[Round "9.10"]
[White "Ankit, R. Rajpara"]
[Black "Loiacono, Leonardo"]
[Result "1-0"]
[WhiteElo "2454"]
[BlackElo "2249"]
[PlyCount "79"]
[EventDate "2019.08.09"]
[EventType "swiss"]
[EventCountry "ITA"]
[TimeControl "5400+30"]
[WhiteClock "0:34:00"]
[BlackClock "0:09:11"]

1. d4 {[%emt 0:00:30]} d5 {[%emt 0:01:30]} 2. c4 {[%emt 0:00:00]} c6 {[%emt 0:00:00]} 3. Nc3 {[%emt 0:00:00]} Nf6 {[%emt 0:00:00]} 4. cxd5 {[%emt 0:00:30]} cxd5 {[%emt 0:00:30]} 5. Bf4 {[%emt 0:00:00]} Nc6 {[%emt 0:00:00]} 6. e3 {[%emt 0:00:00]} Bg4 {[%emt 0:00:00]} 7. Qb3 {[%emt 0:00:30]} Na5 {[%emt 0:00:30]} 8. Qa4+ {[%emt 0:00:30]} Bd7 {[%emt 0:00:30]} 9. Qd1 {[%emt 0:00:00]} e6 {[%emt 0:00:30]} 10. Nf3 {[%emt 0:00:00]} Bb4 {[%emt 0:01:30]} 11. Bd3 {[%emt 0:01:30]} Rc8 {[%emt 0:02:30]} 12. Rc1 {[%emt 0:02:30]} Nc4 {[%emt 0:06:30]} 13. Qe2 {[%emt 0:11:30]} Qa5 {[%emt 0:05:30]} 14. O-O {[%emt 0:01:30]} O-O {[%emt 0:10:30]} 15. Bxc4 {[%emt 0:06:30]} Rxc4 {[%emt 0:00:30]} 16. Ne5 {[%emt 0:00:30]} Rcc8 {[%emt 0:01:30]} 17. Nxd7 {[%emt 0:08:30]} Nxd7 {[%emt 0:00:00]} 18. Qb5 {[%emt 0:00:30]} Qxb5 {[%emt 0:08:00]} 19. Nxb5 {[%emt 0:00:30]} a6 {[%emt 0:00:00]} 20. Bd6 {[%emt 0:02:30]} axb5 {[%emt 0:00:00]} 21. Bxf8 {[%emt 0:00:30]} Rxf8 {[%emt 0:06:30]} 22. Rc7 {[%emt 0:02:30]} Rd8 {[%emt 0:01:30]} 23. Rxb7 {[%emt 0:00:30]} Kf8 {[%emt 0:00:00]} 24. Rxb5 {[%emt 0:04:30]} Bd6 {[%emt 0:00:00]} 25. Rc1 {[%emt 0:07:30]} Ra8 {[%emt 0:01:30]} 26. Rb7 {[%emt 0:01:30]} Ke7 {[%emt 0:00:00]} 27. a3 {[%emt 0:00:30]} f6 {[%emt 0:03:00]} 28. Kf1 {[%emt 0:00:30]} e5 {[%emt 0:00:30]} 29. Ke2 {[%emt 0:17:30]} g5 {[%emt 0:02:30]} 30. g4 {[%emt 0:01:30]} exd4 {[%emt 0:02:30]} 31. exd4 {[%emt 0:01:30]} Bf4 {[%emt 0:00:30]} 32. Rc3 {[%emt 0:01:30]} h6 {[%emt 0:02:30]} 33. b4 {[%emt 0:03:30]} Ke6 {[%emt 0:07:30]} 34. h3 {[%emt 0:03:30]} Kd6 {[%emt 0:00:30]} 35. b5 {[%emt 0:02:30]} Ke6 {[%emt 0:01:30]} 36. b6 {[%emt 0:09:06]} Kd6 {[%emt 0:01:30]} 37. Rbc7 {[%emt 0:01:45]} Ke7 {[%emt 0:02:30]} 38. Ra7 {[%emt 0:00:50]} Rb8 {[%emt 0:00:30]} 39. Rc6 {[%emt 0:01:08]} Kd8 {[%emt 0:00:30]} 40. Rcc7 1-0

[Event "17th Spilimbergo Open 2019"]
[Site "Spilimbergo"]
[Date "2019.08.15"]
[Round "9.11"]
[White "Collutiis, Duilio"]
[Black "Moroni, Luca Jr"]
[Result "0-1"]
[WhiteElo "2402"]
[BlackElo "2572"]
[PlyCount "62"]
[EventDate "2019.08.09"]
[EventType "swiss"]
[EventCountry "ITA"]
[TimeControl "5400+30"]
[WhiteClock "0:22:00"]
[BlackClock "0:04:19"]

1. c4 {[%emt 0:00:30]} e6 {[%emt 0:00:30]} 2. Nf3 {[%emt 0:00:00]} d5 {[%emt 0:00:00]} 3. g3 {[%emt 0:00:00]} Nf6 {[%emt 0:00:00]} 4. Bg2 {[%emt 0:00:30]} d4 {[%emt 0:01:30]} 5. O-O {[%emt 0:01:30]} c5 {[%emt 0:00:30]} 6. e3 {[%emt 0:00:30]} Nc6 {[%emt 0:00:00]} 7. exd4 {[%emt 0:00:30]} cxd4 {[%emt 0:00:00]} 8. d3 {[%emt 0:00:30]} h6 {[%emt 0:00:30]} 9. Na3 {[%emt 0:13:30]} Bc5 {[%emt 0:06:30]} 10. Nc2 {[%emt 0:03:30]} O-O {[%emt 0:02:30]} 11. Re1 {[%emt 0:09:30]} Nd7 {[%emt 0:08:30]} 12. a3 {[%emt 0:03:30]} a5 {[%emt 0:00:30]} 13. b3 {[%emt 0:05:30]} e5 {[%emt 0:10:30]} 14. Bd2 {[%emt 0:08:30]} Re8 {[%emt 0:03:30]} 15. b4 {[%emt 0:00:30]} Bd6 {[%emt 0:01:30]} 16. Nh4 {[%emt 0:04:30]} Nf6 {[%emt 0:02:30]} 17. f4 {[%emt 0:09:30]} exf4 {[%emt 0:08:30]} 18. gxf4 {[%emt 0:00:30]} Rxe1+ {[%emt 0:01:30]} 19. Qxe1 {[%emt 0:00:30]} axb4 {[%emt 0:00:00]} 20. axb4 {[%emt 0:01:30]} Rxa1 {[%emt 0:00:00]} 21. Qxa1 {[%emt 0:01:30]} Nh5 {[%emt 0:02:30]} 22. b5 {[%emt 0:13:30]} Qxh4 {[%emt 0:07:30]} 23. bxc6 {[%emt 0:00:30]} bxc6 {[%emt 0:04:30]} 24. Qa8 {[%emt 0:00:30]} Qg4 {[%emt 0:01:30]} 25. h3 {[%emt 0:04:55]} Qd1+ {[%emt 0:07:30]} 26. Be1 {[%emt 0:02:41]} Qxc2 {[%emt 0:00:30]} 27. Qxc8+ {[%emt 0:00:07]} Bf8 {[%emt 0:00:30]} 28. Qg4 {[%emt 0:08:02]} Qc1 {[%emt 0:08:30]} 29. Qxh5 {[%emt 0:00:33]} Qxe1+ {[%emt 0:00:30]} 30. Kh2 {[%emt 0:00:10]} Bd6 {[%emt 0:00:30]} 31. Qf5 {[%emt 0:03:43]} g5 0-1